[Event "*** Titled Tuesday Blitz"]
[Site "Chess.com"]
[Date "2020.05.12"]
[Round "1"]
[White "CzechmVIII"]
[Black "deep306"]
[Result "1-0"]
[WhiteElo "2251"]
[BlackElo "2502"]
[TimeControl "180+1"]
[EndTime "10:08:30 PDT"]
[Termination "CzechmVIII won by resignation"]

1. e4 {[%clk 0:03:00.9]} 1... e6 {[%clk 0:02:59.1]} 2. d4 {[%clk 0:03:00.3]}
2... d5 {[%clk 0:02:59.4]} 3. Nc3 {[%clk 0:03:00.5]} 3... Nf6 {[%clk 0:02:59.1]}
4. Bg5 {[%clk 0:03:00.3]} 4... Be7 {[%clk 0:02:58.7]} 5. e5 {[%clk 0:03:00.3]}
5... Nfd7 {[%clk 0:02:58.9]} 6. Bxe7 {[%clk 0:03:00]} 6... Qxe7 {[%clk
0:02:59.1]} 7. f4 {[%clk 0:03:00.2]} 7... a6 {[%clk 0:02:58.6]} 8. Nf3 {[%clk
0:03:00]} 8... Nb6 {[%clk 0:02:58.8]} 9. Qd2 {[%clk 0:02:52.9]} 9... Bd7 {[%clk
0:02:58.8]} 10. Bd3 {[%clk 0:02:48.6]} 10... Nc6 {[%clk 0:02:58.5]} 11. O-O
{[%clk 0:02:45.8]} 11... O-O-O {[%clk 0:02:58]} 12. a3 {[%clk 0:02:39.4]} 12...
f6 {[%clk 0:02:33.7]} 13. exf6 {[%clk 0:02:30.9]} 13... gxf6 {[%clk 0:02:33.2]}
14. Rae1 {[%clk 0:02:28.3]} 14... Qd6 {[%clk 0:02:32.3]} 15. b4 {[%clk
0:02:20.5]} 15... Na7 {[%clk 0:02:16.5]} 16. Qe2 {[%clk 0:02:07.1]} 16... Rde8
{[%clk 0:02:15.8]} 17. g3 {[%clk 0:01:58.3]} 17... Kb8 {[%clk 0:02:06.5]} 18.
Nd1 {[%clk 0:01:55.8]} 18... Bb5 {[%clk 0:02:04.7]} 19. Nb2 {[%clk 0:01:45.5]}
19... Bxd3 {[%clk 0:02:02.1]} 20. Nxd3 {[%clk 0:01:44.8]} 20... Nb5 {[%clk
0:02:02.4]} 21. Ra1 {[%clk 0:01:31.5]} 21... Nc4 {[%clk 0:02:01.8]} 22. a4
{[%clk 0:01:26.9]} 22... Nc3 {[%clk 0:01:54.1]} 23. Qe1 {[%clk 0:01:23.3]} 23...
Ne4 {[%clk 0:01:52.7]} 24. Nc5 {[%clk 0:01:19.2]} 24... Qc6 {[%clk 0:01:39.8]}
25. b5 {[%clk 0:01:15.4]} 25... axb5 {[%clk 0:01:33.3]} 26. axb5 {[%clk
0:01:15.5]} 26... Qxb5 {[%clk 0:01:33.8]} 27. Rb1 {[%clk 0:01:15.3]} 27... Qc6
{[%clk 0:01:26.2]} 28. Rxb7+ {[%clk 0:01:09.7]} 28... Qxb7 {[%clk 0:01:26.3]}
29. Nxb7 {[%clk 0:01:09.1]} 29... Kxb7 {[%clk 0:01:26.8]} 30. Qb4+ {[%clk
0:01:07.1]} 30... Nb6 {[%clk 0:01:24.8]} 31. Ra1 {[%clk 0:01:02.5]} 31... Nd6
{[%clk 0:01:17.4]} 32. Nd2 {[%clk 0:00:57.9]} 32... Ra8 {[%clk 0:01:17]} 33.
Rxa8 {[%clk 0:00:55.4]} 33... Rxa8 {[%clk 0:01:16.1]} 34. Nb3 {[%clk 0:00:55.6]}
34... Kc6 {[%clk 0:00:45.8]} 35. Qe1 {[%clk 0:00:41.3]} 35... Ne4 {[%clk
0:00:40.2]} 36. Nc5 {[%clk 0:00:33.4]} 36... f5 {[%clk 0:00:21.4]} 37. Kg2
{[%clk 0:00:23.3]} 37... Ra2 {[%clk 0:00:20.6]} 38. Qe2 {[%clk 0:00:16.3]} 38...
Nc4 {[%clk 0:00:20.2]} 39. Kh3 {[%clk 0:00:15.7]} 39... Kd6 {[%clk 0:00:15.1]}
40. Qh5 {[%clk 0:00:14.7]} 40... Rxc2 {[%clk 0:00:13.2]} 41. Qe8 {[%clk
0:00:14]} 41... Nxc5 {[%clk 0:00:12.1]} 42. dxc5+ {[%clk 0:00:13]} 42... Kxc5
{[%clk 0:00:12.3]} 43. Qxe6 {[%clk 0:00:13.2]} 43... c6 {[%clk 0:00:12.3]} 44.
Qe7+ {[%clk 0:00:13.3]} 44... Kd4 {[%clk 0:00:11.6]} 45. Qf6+ {[%clk 0:00:11.9]}
45... Kc5 {[%clk 0:00:11]} 46. Qxf5 {[%clk 0:00:11.9]} 46... Rd2 {[%clk
0:00:11.1]} 47. Qf8+ {[%clk 0:00:11.7]} 47... Kd4 {[%clk 0:00:11]} 48. Qf6+
{[%clk 0:00:11.9]} 48... Ke3 {[%clk 0:00:11.4]} 49. Qe7+ {[%clk 0:00:10.9]}
49... Kf2 {[%clk 0:00:11.6]} 50. Kg4 {[%clk 0:00:08.3]} 50... Ne3+ {[%clk
0:00:11.4]} 51. Kh5 {[%clk 0:00:08.3]} 51... d4 {[%clk 0:00:11.6]} 52. g4 {[%clk
0:00:07.1]} 52... d3 {[%clk 0:00:11.6]} 53. Qh4+ {[%clk 0:00:07.3]} 53... Kf1
{[%clk 0:00:10.8]} 54. Qg3 {[%clk 0:00:06.5]} 54... Re2 {[%clk 0:00:10.4]} 55.
Qf3+ {[%clk 0:00:06.2]} 55... Ke1 {[%clk 0:00:10.6]} 56. Qg3+ {[%clk 0:00:06.4]}
56... Kd1 {[%clk 0:00:10.9]} 57. f5 {[%clk 0:00:06.5]} 57... d2 {[%clk
0:00:10.9]} 58. Qf3 {[%clk 0:00:06.2]} 58... Ke1 {[%clk 0:00:10.9]} 59. Qg3+
{[%clk 0:00:06.5]} 59... Kf1 {[%clk 0:00:11.3]} 60. Qf3+ {[%clk 0:00:06.8]}
60... Kg1 {[%clk 0:00:11.2]} 61. Qxe2 {[%clk 0:00:06.5]} 61... d1=Q {[%clk
0:00:11.5]} 62. Qxd1+ {[%clk 0:00:06.2]} 62... Nxd1 {[%clk 0:00:11.3]} 63. f6
{[%clk 0:00:07.1]} 63... Ne3 {[%clk 0:00:09.2]} 64. f7 {[%clk 0:00:07.3]} 1-0

[Event "*** Titled Tuesday Blitz"]
[Site "Chess.com"]
[Date "2020.05.12"]
[Round "1"]
[White "SoltaniciR"]
[Black "Mimsychess"]
[Result "1/2-1/2"]
[WhiteElo "2630"]
[BlackElo "2328"]
[TimeControl "180+1"]
[EndTime "10:08:33 PDT"]
[Termination "Game drawn - insufficient material"]

1. e4 {[%clk 0:03:00.9]} 1... e5 {[%clk 0:02:58]} 2. Nf3 {[%clk 0:03:00.2]} 2...
Nc6 {[%clk 0:02:58.5]} 3. Bb5 {[%clk 0:03:00.3]} 3... a6 {[%clk 0:02:57]} 4. Ba4
{[%clk 0:03:00.4]} 4... Nf6 {[%clk 0:02:56]} 5. O-O {[%clk 0:03:00.4]} 5... Be7
{[%clk 0:02:55.8]} 6. d3 {[%clk 0:02:57.9]} 6... b5 {[%clk 0:02:50.6]} 7. Bb3
{[%clk 0:02:58.2]} 7... d6 {[%clk 0:02:49.6]} 8. c3 {[%clk 0:02:57.7]} 8... O-O
{[%clk 0:02:48.6]} 9. Re1 {[%clk 0:02:57.9]} 9... h6 {[%clk 0:02:46.9]} 10. Nbd2
{[%clk 0:02:57.2]} 10... Re8 {[%clk 0:02:43]} 11. Nf1 {[%clk 0:02:52.9]} 11...
Na5 {[%clk 0:02:42]} 12. Bc2 {[%clk 0:02:49.3]} 12... c5 {[%clk 0:02:42.5]} 13.
d4 {[%clk 0:02:46.8]} 13... cxd4 {[%clk 0:02:29.6]} 14. cxd4 {[%clk 0:02:46.5]}
14... Qc7 {[%clk 0:02:30.2]} 15. h3 {[%clk 0:02:18.2]} 15... exd4 {[%clk
0:02:21.5]} 16. Nxd4 {[%clk 0:02:17.1]} 16... Bf8 {[%clk 0:02:21]} 17. Ng3
{[%clk 0:02:14.9]} 17... Bb7 {[%clk 0:02:18.9]} 18. b3 {[%clk 0:01:57.4]} 18...
d5 {[%clk 0:02:17.3]} 19. e5 {[%clk 0:01:53]} 19... Rxe5 {[%clk 0:02:14.2]} 20.
Bb2 {[%clk 0:01:37.4]} 20... Rxe1+ {[%clk 0:02:12.3]} 21. Qxe1 {[%clk
0:01:37.5]} 21... Re8 {[%clk 0:02:10]} 22. Qd1 {[%clk 0:01:29.4]} 22... Ne4
{[%clk 0:02:07]} 23. Rc1 {[%clk 0:01:12.2]} 23... Qf4 {[%clk 0:01:56]} 24. Qf3
{[%clk 0:00:25.6]} 24... Qxf3 {[%clk 0:01:48.9]} 25. gxf3 {[%clk 0:00:25.3]}
25... Nxg3 {[%clk 0:01:40.4]} 26. fxg3 {[%clk 0:00:23.3]} 26... Bd6 {[%clk
0:01:31.4]} 27. Kf2 {[%clk 0:00:22.8]} 27... Bc5 {[%clk 0:01:31]} 28. Rd1 {[%clk
0:00:20]} 28... Nc6 {[%clk 0:01:29.2]} 29. Kf1 {[%clk 0:00:19.9]} 29... Re3
{[%clk 0:01:21.8]} 30. Kf2 {[%clk 0:00:14.2]} 30... Re6 {[%clk 0:01:05.9]} 31.
Kf1 {[%clk 0:00:13.6]} 31... Rf6 {[%clk 0:01:04.5]} 32. Kg2 {[%clk 0:00:12.5]}
32... Nxd4 {[%clk 0:00:58.7]} 33. Bxd4 {[%clk 0:00:12]} 33... Bxd4 {[%clk
0:00:59.6]} 34. Rxd4 {[%clk 0:00:12.3]} 34... Rc6 {[%clk 0:01:00.5]} 35. Bd3
{[%clk 0:00:08.5]} 35... Rc1 {[%clk 0:00:56.3]} 36. Kf2 {[%clk 0:00:09.4]} 36...
Kf8 {[%clk 0:00:54.1]} 37. a4 {[%clk 0:00:08.8]} 37... bxa4 {[%clk 0:00:50.4]}
38. bxa4 {[%clk 0:00:09.7]} 38... a5 {[%clk 0:00:50.4]} 39. Bb5 {[%clk
0:00:09.1]} 39... Rc2+ {[%clk 0:00:47.9]} 40. Ke3 {[%clk 0:00:08.2]} 40... Rc3+
{[%clk 0:00:48]} 41. Rd3 {[%clk 0:00:07.7]} 41... Rxd3+ {[%clk 0:00:43.7]} 42.
Bxd3 {[%clk 0:00:08.6]} 42... Ke7 {[%clk 0:00:43.6]} 43. Kd4 {[%clk 0:00:09.5]}
43... Kd6 {[%clk 0:00:44.1]} 44. Bc2 {[%clk 0:00:09.4]} 44... Bc6 {[%clk
0:00:43.9]} 45. f4 {[%clk 0:00:09.1]} 45... f6 {[%clk 0:00:38.2]} 46. Bb3 {[%clk
0:00:10]} 46... g5 {[%clk 0:00:37.2]} 47. h4 {[%clk 0:00:10]} 47... gxh4 {[%clk
0:00:36.4]} 48. gxh4 {[%clk 0:00:10.5]} 48... Ke6 {[%clk 0:00:37.3]} 49. Bc2
{[%clk 0:00:10.3]} 49... Bd7 {[%clk 0:00:35]} 50. Bb3 {[%clk 0:00:08.5]} 50...
Kf5 {[%clk 0:00:31.5]} 51. Ke3 {[%clk 0:00:08.4]} 51... d4+ {[%clk 0:00:31]} 52.
Kxd4 {[%clk 0:00:08.1]} 52... Kxf4 {[%clk 0:00:31.4]} 53. Kc5 {[%clk 0:00:08.6]}
53... Kg4 {[%clk 0:00:30.2]} 54. Kb6 {[%clk 0:00:09]} 54... Kxh4 {[%clk
0:00:30]} 55. Kxa5 {[%clk 0:00:09.8]} 55... Kg4 {[%clk 0:00:29.3]} 56. Kb6
{[%clk 0:00:10.2]} 56... Bxa4 {[%clk 0:00:16.5]} 57. Bxa4 {[%clk 0:00:09.3]}
57... f5 {[%clk 0:00:17.4]} 58. Kc5 {[%clk 0:00:09.7]} 58... f4 {[%clk 0:00:15]}
59. Kd4 {[%clk 0:00:10.1]} 59... Kg3 {[%clk 0:00:15.3]} 60. Be8 {[%clk
0:00:04.7]} 60... f3 {[%clk 0:00:14.1]} 61. Ke3 {[%clk 0:00:03.6]} 61... f2
{[%clk 0:00:12]} 62. Bb5 {[%clk 0:00:02.4]} 62... Kg2 {[%clk 0:00:11.2]} 63. Kf4
{[%clk 0:00:01.8]} 63... f1=Q+ {[%clk 0:00:07.2]} 64. Bxf1+ {[%clk 0:00:01.3]}
64... Kxf1 {[%clk 0:00:08.1]} 65. Kg4 {[%clk 0:00:01.8]} 65... Kg2 {[%clk
0:00:08]} 66. Kh5 {[%clk 0:00:02.7]} 66... Kg3 {[%clk 0:00:08.4]} 67. Kxh6
{[%clk 0:00:03.6]} 1/2-1/2

[Event "*** Titled Tuesday Blitz"]
[Site "Chess.com"]
[Date "2020.05.12"]
[Round "1"]
[White "javirec"]
[Black "Reader777"]
[Result "0-1"]
[WhiteElo "2288"]
[BlackElo "2604"]
[TimeControl "180+1"]
[EndTime "10:08:33 PDT"]
[Termination "Reader777 won on time"]

1. e4 {[%clk 0:02:46.5]} 1... c5 {[%clk 0:02:59.9]} 2. Nf3 {[%clk 0:02:45.2]}
2... d6 {[%clk 0:02:59.9]} 3. d4 {[%clk 0:02:44]} 3... cxd4 {[%clk 0:03:00.1]}
4. Nxd4 {[%clk 0:02:43.4]} 4... Nf6 {[%clk 0:03:00.4]} 5. Nc3 {[%clk 0:02:37.6]}
5... e6 {[%clk 0:03:00.6]} 6. Be2 {[%clk 0:02:32.6]} 6... Be7 {[%clk 0:02:58.9]}
7. O-O {[%clk 0:02:31.4]} 7... a6 {[%clk 0:02:57.7]} 8. a4 {[%clk 0:02:30.1]}
8... O-O {[%clk 0:02:57.1]} 9. Nb3 {[%clk 0:02:25.6]} 9... Nc6 {[%clk
0:02:55.8]} 10. f4 {[%clk 0:02:22.7]} 10... Qc7 {[%clk 0:02:55]} 11. Bd3 {[%clk
0:02:20.4]} 11... Re8 {[%clk 0:02:50.8]} 12. Qe2 {[%clk 0:02:19.4]} 12... b6
{[%clk 0:02:36.1]} 13. Bd2 {[%clk 0:02:18]} 13... Bb7 {[%clk 0:02:35.3]} 14.
Rae1 {[%clk 0:02:16.5]} 14... Nd7 {[%clk 0:02:32]} 15. Nd1 {[%clk 0:02:11]}
15... Nc5 {[%clk 0:02:28]} 16. Nxc5 {[%clk 0:02:09.8]} 16... bxc5 {[%clk
0:02:27.4]} 17. c3 {[%clk 0:02:10]} 17... Bf8 {[%clk 0:02:12.5]} 18. Ne3 {[%clk
0:02:03.5]} 18... Qd7 {[%clk 0:01:31.4]} 19. Qf3 {[%clk 0:01:57]} 19... g6
{[%clk 0:01:26.9]} 20. Qh3 {[%clk 0:01:50.8]} 20... Bg7 {[%clk 0:01:26.4]} 21.
Kh1 {[%clk 0:01:49.2]} 21... Rad8 {[%clk 0:01:23.5]} 22. Nc4 {[%clk 0:01:44.2]}
22... Qc7 {[%clk 0:01:18.2]} 23. Ne3 {[%clk 0:01:42.8]} 23... Bc8 {[%clk
0:01:08.6]} 24. Ng4 {[%clk 0:01:37.3]} 24... h5 {[%clk 0:01:06]} 25. Ne3 {[%clk
0:01:35.9]} 25... d5 {[%clk 0:01:01.4]} 26. e5 {[%clk 0:01:34.6]} 26... Ne7
{[%clk 0:00:51.5]} 27. Bb1 {[%clk 0:01:32.2]} 27... Bb7 {[%clk 0:00:49.4]} 28.
Nd1 {[%clk 0:01:27.7]} 28... d4 {[%clk 0:00:49.2]} 29. Be4 {[%clk 0:01:27.6]}
29... Bxe4 {[%clk 0:00:48.3]} 30. Rxe4 {[%clk 0:01:27.9]} 30... Qc6 {[%clk
0:00:47.2]} 31. Rfe1 {[%clk 0:01:26.4]} 31... dxc3 {[%clk 0:00:45.4]} 32. Bxc3
{[%clk 0:01:25]} 32... Rxd1 {[%clk 0:00:44.6]} 33. Rxd1 {[%clk 0:01:16.4]} 33...
Qxe4 {[%clk 0:00:44]} 34. Qg3 {[%clk 0:01:16.8]} 34... Nf5 {[%clk 0:00:43.4]}
35. Qf2 {[%clk 0:01:16.8]} 35... c4 {[%clk 0:00:40.3]} 36. Re1 {[%clk
0:01:16.6]} 36... Qd5 {[%clk 0:00:39.7]} 37. h3 {[%clk 0:01:15.2]} 37... h4
{[%clk 0:00:39]} 38. Kh2 {[%clk 0:01:12.9]} 38... Bf8 {[%clk 0:00:38.9]} 39. Re2
{[%clk 0:01:11.9]} 39... Bc5 {[%clk 0:00:38.5]} 40. Qf3 {[%clk 0:01:08.9]} 40...
Qxf3 {[%clk 0:00:38.1]} 41. gxf3 {[%clk 0:01:09.8]} 41... Rd8 {[%clk 0:00:38.4]}
42. Kg2 {[%clk 0:01:07.4]} 42... Ne3+ {[%clk 0:00:37.6]} 43. Kh2 {[%clk
0:01:06.2]} 43... Nd5 {[%clk 0:00:37.2]} 44. Bd2 {[%clk 0:01:05]} 44... Rb8
{[%clk 0:00:35.7]} 45. Bc1 {[%clk 0:01:04]} 45... Rb3 {[%clk 0:00:31.7]} 46. Kg2
{[%clk 0:01:03.3]} 46... Be3 {[%clk 0:00:32]} 47. Bxe3 {[%clk 0:01:00.5]} 47...
Nxe3+ {[%clk 0:00:32.9]} 48. Kf2 {[%clk 0:01:00.2]} 48... Nd5 {[%clk 0:00:33.3]}
49. Rc2 {[%clk 0:00:59.9]} 49... Nxf4 {[%clk 0:00:29.7]} 50. Rxc4 {[%clk
0:00:59.9]} 50... Nxh3+ {[%clk 0:00:30.1]} 51. Kg2 {[%clk 0:00:55.1]} 51... Ng5
{[%clk 0:00:30.2]} 52. f4 {[%clk 0:00:53.6]} 52... Rxb2+ {[%clk 0:00:29.6]} 53.
Kf1 {[%clk 0:00:50.5]} 53... Nf3 {[%clk 0:00:29.7]} 54. Rc3 {[%clk 0:00:49.4]}
54... Nd2+ {[%clk 0:00:29.4]} 55. Ke1 {[%clk 0:00:47.6]} 55... Ne4 {[%clk
0:00:28.3]} 56. Rh3 {[%clk 0:00:47.4]} 56... Ra2 {[%clk 0:00:24.8]} 57. Rxh4
{[%clk 0:00:45.1]} 57... Rxa4 {[%clk 0:00:25.4]} 58. Ke2 {[%clk 0:00:43.4]}
58... Rb4 {[%clk 0:00:24.9]} 59. Ke3 {[%clk 0:00:42.5]} 59... Nc3 {[%clk
0:00:24.6]} 60. Rh2 {[%clk 0:00:41.2]} 60... Nd5+ {[%clk 0:00:25.1]} 61. Kd3
{[%clk 0:00:40.3]} 61... Rxf4 {[%clk 0:00:26]} 62. Ra2 {[%clk 0:00:39.7]} 62...
Rf5 {[%clk 0:00:26.2]} 63. Rb2 {[%clk 0:00:38.3]} 63... Rxe5 {[%clk 0:00:26.1]}
64. Rb8+ {[%clk 0:00:38.3]} 64... Kg7 {[%clk 0:00:26]} 65. Ra8 {[%clk
0:00:36.8]} 65... g5 {[%clk 0:00:24.6]} 66. Rxa6 {[%clk 0:00:36.5]} 66... Nb4+
{[%clk 0:00:24.7]} 67. Kd4 {[%clk 0:00:36.1]} 67... Nxa6 {[%clk 0:00:25.6]} 68.
Kxe5 {[%clk 0:00:36.2]} 68... Kg6 {[%clk 0:00:26.3]} 69. Ke4 {[%clk 0:00:36.1]}
69... g4 {[%clk 0:00:26.4]} 0-1

[Event "*** Titled Tuesday Blitz"]
[Site "Chess.com"]
[Date "2020.05.12"]
[Round "1"]
[White "tylityli"]
[Black "olomi007"]
[Result "0-1"]
[WhiteElo "2328"]
[BlackElo "2651"]
[TimeControl "180+1"]
[EndTime "10:08:34 PDT"]
[Termination "olomi007 won by resignation"]

1. e4 {[%clk 0:02:20.8]} 1... c5 {[%clk 0:02:58.5]} 2. Nf3 {[%clk 0:02:19.4]}
2... d6 {[%clk 0:02:58.1]} 3. d4 {[%clk 0:02:19.7]} 3... cxd4 {[%clk 0:02:58.6]}
4. Nxd4 {[%clk 0:02:20.4]} 4... Nf6 {[%clk 0:02:59.2]} 5. Nc3 {[%clk 0:02:21]}
5... g6 {[%clk 0:02:59.8]} 6. Be2 {[%clk 0:02:21.6]} 6... Bg7 {[%clk 0:02:59.2]}
7. Be3 {[%clk 0:02:22.1]} 7... Nc6 {[%clk 0:02:59.3]} 8. O-O {[%clk 0:02:22.5]}
8... O-O {[%clk 0:02:58.9]} 9. Nb3 {[%clk 0:02:22.5]} 9... Be6 {[%clk
0:02:57.1]} 10. f4 {[%clk 0:02:20.4]} 10... Na5 {[%clk 0:02:34.2]} 11. Nxa5
{[%clk 0:02:03.9]} 11... Qxa5 {[%clk 0:02:32.7]} 12. Bf3 {[%clk 0:02:04.3]}
12... Rac8 {[%clk 0:02:28.4]} 13. Qd2 {[%clk 0:02:02.7]} 13... Bg4 {[%clk
0:02:11.8]} 14. h3 {[%clk 0:01:49.2]} 14... Bxf3 {[%clk 0:02:11.3]} 15. Rxf3
{[%clk 0:01:50.1]} 15... Rxc3 {[%clk 0:02:10.5]} 16. Qxc3 {[%clk 0:01:49.7]}
16... Qxc3 {[%clk 0:02:10]} 17. bxc3 {[%clk 0:01:50.6]} 17... Nxe4 {[%clk
0:02:10.5]} 18. Bxa7 {[%clk 0:01:49.9]} 18... Nxc3 {[%clk 0:02:09]} 19. Re1
{[%clk 0:01:46.5]} 19... e6 {[%clk 0:02:05.7]} 20. Be3 {[%clk 0:01:43.1]} 20...
Ra8 {[%clk 0:02:03.6]} 21. Bd2 {[%clk 0:01:42.9]} 21... Nd5 {[%clk 0:01:59.6]}
22. c4 {[%clk 0:01:40.2]} 22... Nb6 {[%clk 0:01:56.8]} 23. Bc3 {[%clk
0:01:38.7]} 23... Nxc4 {[%clk 0:01:54.3]} 24. Bxg7 {[%clk 0:01:37.6]} 24... Kxg7
{[%clk 0:01:55.2]} 25. Re2 {[%clk 0:01:37.5]} 25... d5 {[%clk 0:01:53.4]} 26.
Rb3 {[%clk 0:01:36.9]} 26... b6 {[%clk 0:01:53.3]} 27. Kf2 {[%clk 0:01:37]}
27... h5 {[%clk 0:01:52]} 28. Rc2 {[%clk 0:01:34]} 28... Ra4 {[%clk 0:01:50]}
29. g3 {[%clk 0:01:32.5]} 29... Kf6 {[%clk 0:01:49.5]} 30. Kf3 {[%clk
0:01:26.5]} 30... Kf5 {[%clk 0:01:44.7]} 31. Rd3 {[%clk 0:01:10.6]} 31... h4
{[%clk 0:01:37.3]} 32. g4+ {[%clk 0:01:08.1]} 32... Kf6 {[%clk 0:01:37.4]} 33.
Rb3 {[%clk 0:01:06.8]} 33... g5 {[%clk 0:01:34]} 34. fxg5+ {[%clk 0:01:05.8]}
34... Kxg5 {[%clk 0:01:34.5]} 35. Kg2 {[%clk 0:01:04.9]} 35... f6 {[%clk
0:01:20.1]} 36. Rf3 {[%clk 0:01:03.2]} 36... Nd6 {[%clk 0:01:13.9]} 37. Rc6
{[%clk 0:00:56.7]} 37... Rxa2+ {[%clk 0:01:13.5]} 38. Rf2 {[%clk 0:00:54.6]}
38... Rxf2+ {[%clk 0:01:09]} 39. Kxf2 {[%clk 0:00:55.5]} 39... Ne4+ {[%clk
0:01:06.7]} 40. Ke3 {[%clk 0:00:55.4]} 40... e5 {[%clk 0:01:07]} 41. Rxb6 {[%clk
0:00:54.4]} 41... f5 {[%clk 0:01:01.5]} 42. gxf5 {[%clk 0:00:52.7]} 42... Kxf5
{[%clk 0:01:00.9]} 43. Rh6 {[%clk 0:00:48.7]} 43... d4+ {[%clk 0:01:01]} 44. Kf3
{[%clk 0:00:40.5]} 44... Ng5+ {[%clk 0:00:57.8]} 45. Ke2 {[%clk 0:00:38.4]}
45... Nxh3 {[%clk 0:00:57]} 46. Rxh4 {[%clk 0:00:38.6]} 46... Nf4+ {[%clk
0:00:57.2]} 47. Kd2 {[%clk 0:00:37]} 47... e4 {[%clk 0:00:55.7]} 48. Rh8 {[%clk
0:00:37.1]} 48... e3+ {[%clk 0:00:54.7]} 49. Kc2 {[%clk 0:00:35.5]} 49... d3+
{[%clk 0:00:52.9]} 50. Kc3 {[%clk 0:00:35.6]} 50... Ke4 {[%clk 0:00:49.8]} 51.
Re8+ {[%clk 0:00:28.2]} 51... Kf3 {[%clk 0:00:49]} 52. Rd8 {[%clk 0:00:26.8]}
52... Ke2 {[%clk 0:00:39.3]} 53. Rh8 {[%clk 0:00:14.2]} 53... d2 {[%clk
0:00:23.9]} 54. Rh2+ {[%clk 0:00:13.1]} 54... Ke1 {[%clk 0:00:24.2]} 55. Rh1+
{[%clk 0:00:12.8]} 55... Kf2 {[%clk 0:00:24.5]} 56. Kc2 {[%clk 0:00:11.4]} 56...
Ng2 {[%clk 0:00:22.5]} 57. Kd1 {[%clk 0:00:10.7]} 57... Kf3 {[%clk 0:00:18.9]}
58. Rf1+ {[%clk 0:00:09.9]} 58... Ke4 {[%clk 0:00:19.1]} 59. Rg1 {[%clk
0:00:09]} 59... Nf4 {[%clk 0:00:17]} 60. Rg8 {[%clk 0:00:09.2]} 60... Nh3 {[%clk
0:00:13.9]} 61. Rd8 {[%clk 0:00:06.1]} 61... Nf2+ {[%clk 0:00:12.5]} 62. Ke2
{[%clk 0:00:06.6]} 62... d1=Q+ {[%clk 0:00:12.5]} 63. Rxd1 {[%clk 0:00:06.5]}
63... Nxd1 {[%clk 0:00:13.3]} 64. Kxd1 {[%clk 0:00:07]} 64... Kf3 {[%clk
0:00:13.6]} 65. Ke1 {[%clk 0:00:07.9]} 65... e2 {[%clk 0:00:14]} 66. Kd2 {[%clk
0:00:08]} 66... Kf2 {[%clk 0:00:14.6]} 0-1